bitfinex-derivatives/quotes_SOLF0:USTF0_20250310
["timestamp","ask_amount","ask_price","bid_price","bid_amount"]
[1741566735065,213.67969064,125.68,125.66,115.52192038]
[1741566735366,137.86439064,125.68,125.66,119.50192038]
[1741566735559,102.87849064,125.68,125.67,7.9579]
[1741566735868,102.93600366,125.68,125.67,7.9579]
[1741566736055,90.10400366,125.68,125.67,11.9379]
[1741566736261,90.10400366,125.68,125.67,142.49896192]
[1741566736460,90.10400366,125.68,125.67,138.51896192]
[1741566736761,90.10400366,125.68,125.67,165.50106192]
[1741566737364,5.62210366,125.68,125.67,97.82806331]
[1741566737766,5.62210366,125.68,125.67,89.87016331]
[1741566738067,5.62210366,125.68,125.67,85.89016331]
[1741566738460,5.62210366,125.68,125.67,93.84806331]
[1741566738666,5.62210366,125.68,125.67,155.84806331]
[1741566738866,5.62210366,125.68,125.67,147.89016331]
[1741566739063,5.62210366,125.68,125.67,155.84806331]
[1741566739465,5.62210366,125.68,125.67,85.89016331]
[1741566739664,5.62210366,125.68,125.67,85.83016331]
[1741566739956,5.62210366,125.68,125.67,50.95016331]
[1741566740766,44.50210366,125.68,125.65,0.05669115]
[1741566740965,286.04402404,125.68,125.62,262.8]
[1741566741173,6.3335818,125.67,125.58,34.9]
[1741566741469,7.961,125.63,125.58,34.9]
[1741566741668,6.3335818,125.66,125.58,34.9]
[1741566741868,6.3335818,125.66,125.56,262.56]
[1741566741869,285.98651102,125.68,125.56,265.5076]
[1741566742076,0.05971031,125.63,125.61,0.05751327]
[1741566742369,34.92,125.65,125.61,0.05751327]
[1741566742570,0.05145359,125.63,125.61,0.05751327]
[1741566744375,7.9623,125.61,125.57,93.95458875]
[1741566744679,34.9,125.61,125.57,93.95458875]
[1741566745567,0.06119667,125.6,125.58,0.06116739]
[1741566746673,0.06119667,125.6,125.57,93.95458875]
[1741566747067,0.06119667,125.6,125.52,88.34192038]
[1741566747471,34.84,125.63,125.56,7.9644]
[1741566747773,34.84,125.63,125.52,88.34192038]
[1741566747976,0.05932717,125.61,125.58,0.05618966]
[1741566748278,0.05932717,125.61,125.52,53.52192038]
[1741566748574,192.0,125.62,125.52,53.52192038]
[1741566748775,7.9634,125.59,125.52,61.48902038]
[1741566748974,53.52192038,125.61,125.51,34.82]
[1741566749177,34.82,125.59,125.5,391.94063737]
[1741566749373,34.82,125.59,125.5,383.97243737]
[1741566749579,0.05214561,125.56,125.53,0.05103728]
[1741566749876,0.05214561,125.56,125.49,8.6297]
[1741566750383,8.01754561,125.56,125.5,7.9683]
[1741566750572,0.05214561,125.56,125.49,8.6297]
[1741566750873,34.76,125.55,125.49,2.9476]
[1741566751573,0.05313411,125.53,125.5,34.76]
[1741566752677,0.05313411,125.53,125.46,115.52192038]
[1741566752876,0.05313411,125.53,125.46,53.52192038]
[1741566753180,7.9679,125.52,125.46,61.49282038]
[1741566753374,0.05313411,125.53,125.46,53.52192038]
[1741566753576,34.72,125.54,125.46,53.52192038]
[1741566753773,0.05045615,125.51,125.43,75.16902038]
[1741566753978,245.52192038,125.53,125.43,21.6471]
[1741566753979,34.72,125.5,125.43,21.6471]
[1741566754181,0.05457532,125.48,125.43,21.6471]
[1741566754384,0.05457532,125.48,125.43,56.4471]
[1741566754587,0.05457532,125.48,125.45,7.9714]
[1741566754882,0.05457532,125.48,125.44,2.9939]
[1741566755078,0.05457532,125.48,125.45,7.9713]
[1741566755382,0.05457532,125.48,125.44,2.9939]
[1741566756179,7.9713,125.46,125.43,21.6471]
[1741566756384,0.05457532,125.48,125.43,21.6471]
[1741566756777,7.971,125.47,125.43,21.6471]
[1741566757288,8.02477532,125.48,125.43,21.6471]
[1741566757491,0.05457532,125.48,125.43,21.6471]
[1741566758890,7.9721,125.45,125.43,21.6471]
[1741566759293,7.9723,125.45,125.43,21.6471]
[1741566759526,8.02894015,125.45,125.43,21.6471]
[1741566759809,7.9749,125.41,125.35,34.68]
[1741566760023,0.05664015,125.45,125.35,40.5766]
[1741566760227,34.66,125.46,125.35,40.5766]
[1741566760412,0.05167588,125.42,125.35,40.5566]
[1741566760800,0.05167588,125.42,125.4,7.9747]
[1741566761002,0.05167588,125.42,125.35,40.5566]
[1741566761402,0.05167588,125.42,125.39,53.52192038]
[1741566761605,0.05167588,125.42,125.39,88.16192038]
[1741566762005,0.05167588,125.42,125.4,7.9747]
[1741566762206,0.05167588,125.42,125.39,88.16192038]
[1741566762604,0.05167588,125.42,125.4,7.9747]
[1741566763004,0.05167588,125.42,125.39,150.16192038]
[1741566763208,199.9698,125.49,125.41,53.52192038]
[1741566763599,199.9698,125.49,125.42,2.9658]
[1741566763893,42.589,125.5,125.43,34.62]
[1741566764286,0.06107202,125.48,125.45,0.06045736]
[1741566765689,8.03157202,125.48,125.45,0.06045736]
[1741566765891,0.06107202,125.48,125.45,0.06045736]
[1741566766690,7.971,125.47,125.45,0.06045736]
[1741566766993,0.06107202,125.48,125.45,0.06045736]
[1741566767292,7.9707,125.47,125.45,0.06045736]
[1741566767492,0.06107202,125.48,125.45,0.06045736]
[1741566767685,7.9711,125.47,125.45,0.06045736]
[1741566768291,7.9713,125.46,125.45,0.06045736]
[1741566768690,34.48107202,125.48,125.33,1.38767047]
[1741566768991,7.9746,125.41,125.36,34.46]
[1741566769187,7.9746,125.41,125.36,42.4375]
[1741566769393,7.9763,125.38,125.35,35.88493614]
[1741566769589,34.44,125.44,125.37,267.76]
[1741566769988,0.05914707,125.42,125.37,267.76]
[1741566770388,7.9757,125.39,125.37,267.76]
[1741566770588,34.44,125.44,125.37,267.76]
[1741566770788,0.05041974,125.41,125.37,5.0]
[1741566770990,7.9763,125.38,125.37,5.0]
[1741566771387,34.46,125.39,125.3,5.7498]
[1741566771596,192.0,125.38,125.3,5.7498]
[1741566771794,0.05861942,125.36,125.3,5.7498]
[1741566771994,0.05861942,125.36,125.3,59.31951072]
[1741566773188,0.05861942,125.36,125.31,7.9804]
[1741566773393,0.05861942,125.36,125.3,59.31951072]
[1741566774093,0.05861942,125.36,125.3,40.1898]
[1741566774288,0.05861942,125.36,125.3,102.1898]
[1741566774596,0.05861942,125.36,125.3,155.75951072]
[1741566774996,192.0,125.38,125.3,155.75951072]
[1741566775196,7.977,125.37,125.32,7.9799]
[1741566775390,192.0,125.38,125.3,155.75951072]
[1741566775391,192.0,125.38,125.3,93.75951072]
[1741566775597,192.0,125.38,125.3,40.1898]
[1741566775797,192.0,125.38,125.34,7.9789]
[1741566775993,2.89,125.42,125.35,0.05819809]
[1741566776299,7.9768,125.38,125.35,0.05819809]
[1741566776599,34.44,125.39,125.35,0.05819809]
[1741566778293,7.9771,125.37,125.35,0.05819809]
[1741566778600,34.44,125.39,125.35,0.05819809]
[1741566778800,7.9776,125.36,125.35,0.05819809]
[1741566779200,7.9776,125.36,125.35,9.809e-05]
[1741566780300,0.05620849,125.37,125.35,9.809e-05]
[1741566780901,7.9776,125.36,125.35,9.809e-05]
[1741566781399,14.7691,125.36,125.35,9.809e-05]
[1741566781796,20.98241911,125.36,125.35,9.809e-05]
[1741566783298,13.00481911,125.36,125.23,2.8835]
[1741566783493,53.56971072,125.34,125.23,56.45321072]
[1741566783695,34.46,125.34,125.28,7.9827]
[1741566783897,34.46,125.34,125.25,34.46]
[1741566784297,34.46,125.34,125.26,7.9839]
[1741566784497,0.05496936,125.31,125.26,69.9839]
[1741566784804,0.05496936,125.31,125.25,34.46]
[1741566785096,0.05496936,125.31,125.25,88.02971072]
[1741566785297,53.56971072,125.4,125.25,351.26971072]
[1741566785505,88.00971072,125.4,125.28,53.56971072]
[1741566785703,88.00971072,125.4,125.29,37.2642]
[1741566785999,6.23467634,125.39,125.29,37.2642]
[1741566786300,6.23467634,125.39,125.31,53.56971072]
[1741566786510,0.05162411,125.35,125.33,0.05141602]
[1741566786700,34.44,125.4,125.33,34.49141602]
[1741566787300,34.44,125.4,125.33,0.05141602]
[1741566787500,7.9773,125.37,125.33,0.05141602]
[1741566787707,192.0,125.43,125.34,62.0]
[1741566787910,192.0,125.43,125.35,2.8431]
[1741566788201,7.9758,125.39,125.35,2.8431]
[1741566788507,34.56,125.4,125.35,2.8431]
[1741566788709,34.56,125.4,125.33,297.76]
[1741566788898,34.56,125.4,125.33,263.22]
[1741566789104,0.05781719,125.38,125.35,0.05659914]
[1741566789607,6.24200193,125.37,125.35,0.05659914]
[1741566789997,86.33482536,125.52,125.35,0.05659914]
[1741566789998,34.54,125.44,125.35,0.05659914]
[1741566790201,199.9734,125.43,125.38,7.9763]
[1741566790409,192.0,125.43,125.34,53.56971072]
[1741566790707,7.974,125.42,125.38,7.9762]
[1741566790908,192.0,125.43,125.35,2.9208]
[1741566791114,3.0462,125.47,125.37,53.56971072]
[1741566791406,91.11591072,125.47,125.35,37.4408]
[1741566792005,91.11591072,125.47,125.35,2.9208]
[1741566792006,192.0,125.46,125.35,2.9208]
[1741566792205,7.9737,125.43,125.36,7.9772]
[1741566792408,34.54,125.42,125.35,2.9208]
[1741566792609,34.59119913,125.42,125.39,0.0529148]
[1741566792811,0.05119913,125.42,125.39,0.0529148]
[1741566793005,32.97624336,125.48,125.39,0.0529148]
[1741566793006,34.54,125.48,125.39,0.0529148]
[1741566793407,7.9729,125.44,125.36,67.51624336]
[1741566793704,34.54,125.44,125.36,34.54]
[1741566794410,8.02616866,125.41,125.39,0.05728543]
[1741566794611,0.05116866,125.41,125.39,0.05728543]
[1741566794911,0.05116866,125.41,125.39,8.03298543]
[1741566795208,34.5,125.46,125.39,0.05728543]
[1741566796405,0.05784239,125.44,125.39,0.05728543]
[1741566797011,0.05784239,125.44,125.4,67.47624336]
[1741566797503,2.7928,125.51,125.4,67.47624336]
[1741566797707,37.2528,125.51,125.43,32.97624336]
[1741566798014,37.2528,125.51,125.44,3.0528]
[1741566798218,37.2528,125.51,125.4,67.47624336]
[1741566798513,192.0,125.5,125.4,67.47624336]
[1741566798716,0.05869802,125.47,125.44,0.05593453]
[1741566799817,0.05869802,125.47,125.44,34.49593453]
[1741566800020,0.05869802,125.47,125.44,0.05593453]
[1741566800312,7.9713,125.46,125.44,0.05593453]
[1741566800508,0.05869802,125.47,125.44,0.05593453]
[1741566801113,7.9719,125.45,125.44,0.05593453]
[1741566801314,34.46,125.45,125.38,3.0507]
[1741566801620,224.97624336,125.44,125.32,32.97624336]
[1741566801815,192.0,125.43,125.32,73.19224336]
[1741566802115,198.22320433,125.43,125.32,40.216]
[1741566802420,198.22320433,125.43,125.34,32.97624336]
[1741566802614,0.0555621,125.39,125.36,0.05070228]
[1741566802812,0.0555621,125.39,125.36,34.59070228]
[1741566803224,7.977,125.37,125.36,34.59070228]
[1741566803417,7.977,125.37,125.36,0.05070228]
[1741566803722,7.98,125.33,125.31,36.38824299]
[1741566804023,34.62,125.37,125.31,32.78764299]
[1741566804215,7.9786,125.35,125.31,32.78764299]
[1741566804417,224.97624336,125.36,125.31,32.78764299]
[1741566805015,0.06058612,125.35,125.32,0.05295289]
[1741566805310,0.06058612,125.35,125.31,32.78764299]
[1741566805311,7.9808,125.31,125.3,33.12357937]
[1741566805515,34.66,125.31,125.29,127.65163542]
[1741566805721,38.66,125.31,125.29,127.65163542]
[1741566806023,7.9814,125.3,125.23,39.46217009]
[1741566806223,40.88036929,125.31,125.23,39.46217009]
[1741566806523,0.05549202,125.28,125.25,0.05578218]
[1741566807116,6.22036929,125.3,125.25,34.71578218]
[1741566807320,0.39726929,125.3,125.25,88.39423876]
[1741566807510,194.8538,125.39,125.25,351.53423876]
[1741566807712,34.68,125.36,125.25,351.47845658]
[1741566807916,34.68,125.36,125.28,53.67845658]
[1741566808118,192.0,125.39,125.29,34.68]
[1741566808317,56.53225658,125.43,125.31,53.72971092]
[1741566808520,56.53225658,125.43,125.34,7.9787]
[1741566808521,34.7,125.4,125.34,7.9787]
[1741566808823,34.7,125.4,125.34,34.72]
[1741566809218,192.0,125.42,125.34,34.72]
[1741566809617,0.05605779,125.39,125.37,0.05260213]
[1741566811422,245.67845658,125.38,125.3,7.5503]
[1741566811625,245.67845658,125.38,125.3,3.8756]
[1741566812621,245.67845658,125.38,125.27,263.22]
[1741566812622,192.0,125.37,125.27,263.22]
[1741566812828,53.73711225,125.35,125.33,6.993e-05]
[1741566813033,34.7,125.34,125.33,6.993e-05]
[1741566813222,34.7,125.34,125.25,3.8618]
[1741566813623,7.9809,125.31,125.25,11.846]
[1741566813916,0.05799578,125.29,125.27,0.05288869]
[1741566814124,34.81799578,125.29,125.27,0.05288869]
[1741566814329,34.76,125.29,125.27,0.05288869]
[1741566814524,34.82139784,125.29,125.27,0.05288869]
[1741566815322,42.80359784,125.29,125.27,0.05288869]
[1741566815521,34.82139784,125.29,125.27,0.05288869]
[1741566816128,0.06139784,125.29,125.27,0.05288869]
[1741566817625,42.7006,125.32,125.27,0.05288869]
[1741566817822,34.72,125.32,125.27,3.65758869]
[1741566818229,34.72,125.32,125.27,0.05288869]
[1741566818627,7.9827,125.28,125.27,0.05288869]
[1741566819128,42.6227,125.28,125.27,0.05288869]
[1741566819528,34.64,125.28,125.21,266.7643]
[1741566819736,34.64,125.28,125.21,3.5443]
[1741566819927,6.15039177,125.27,125.17,61.25405658]
[1741566820227,245.67845658,125.26,125.13,53.67845658]
[1741566820426,192.0,125.25,125.18,0.05989053]
[1741566820628,0.05305222,125.21,125.18,0.05989053]
[1741566820834,34.58,125.2,125.18,0.00014805]
[1741566821226,192.0,125.19,125.08,131.87553918]
[1741566821431,198.15039177,125.19,125.09,53.67845658]
[1741566821632,192.0,125.19,125.09,53.67845658]
[1741566822033,34.76,125.18,125.09,53.67845658]
[1741566822237,192.0,125.17,125.08,139.46623918]
[1741566822433,0.05572221,125.15,125.12,0.05860741]
[1741566822736,8.04692221,125.15,125.12,0.05860741]
[1741566823034,34.82,125.14,125.12,0.05860741]
[1741566823223,42.8121,125.14,125.12,0.05860741]
[1741566823422,34.82,125.14,125.12,0.05860741]
[1741566823624,0.05572221,125.15,125.12,0.05860741]
[1741566824525,7.9923,125.13,125.12,0.05860741]
[1741566824735,34.98,125.13,125.08,131.87553918]
[1741566824932,7.9948,125.09,125.08,131.87553918]
[1741566825128,35.04,125.09,125.04,304.54593693]
[1741566825438,35.04,125.09,124.95,131.5533054]
[1741566825439,107.35691316,125.05,124.95,131.5533054]
[1741566825638,53.67845658,124.98,124.95,131.5295054]
[1741566825937,104.9574,125.03,124.97,53.67845658]
[1741566826133,297.21573099,125.38,125.0,53.67845658]
[1741566826134,35.1578,125.16,125.0,53.67845658]
[1741566826338,3.8606,125.16,125.06,53.67845658]
[1741566826635,0.05956909,125.12,125.06,263.54]
[1741566826835,91.01845658,125.11,124.98,57.49275658]
[1741566827035,749.64343226,125.03,124.98,321.03275658]
[1741566827234,343.4772,125.02,124.5,202.0]
[1741566827432,53.67845658,124.88,124.58,5.28678917]
[1741566827737,31.2972,124.97,124.81,53.67845658]
[1741566827931,31.2972,124.96,124.82,3.8143]
[1741566828132,0.05914344,124.9,124.88,0.0573265]
[1741566828326,3.8432,125.02,124.89,317.21845658]
[1741566828638,3.8658,125.0,124.89,317.21845658]
[1741566829135,3.8658,125.0,124.86,53.67845658]
[1741566829334,47.75,124.86,124.57,0.99604492]
[1741566829531,53.67845658,124.69,124.57,0.99604492]
[1741566829731,53.67845658,124.73,124.7,0.05776613]
[1741566829929,0.05832843,124.64,124.57,0.99604492]
[1741566830133,53.67845658,124.74,124.57,0.99604492]
[1741566830333,53.67845658,124.68,124.57,0.99604492]
[1741566830531,53.67845658,124.68,124.59,8.0268]
[1741566830532,980.10115526,124.63,124.59,8.0268]
[1741566830732,918.10115526,124.63,124.57,0.99604492]
[1741566831136,0.05386016,124.61,124.59,0.05799188]
[1741566831341,114.47845658,124.6,124.34,23.86]
[1741566831543,264.04,124.6,124.39,53.67845658]
[1741566831743,53.67845658,124.57,124.33,61.1]
[1741566832036,53.67845658,124.57,124.33,316.0]
[1741566832243,53.67845658,124.57,124.4,53.67845658]
[1741566832540,171.82313698,124.49,124.43,53.67845658]
[1741566832736,156.69990857,124.59,124.47,0.05141896]
[1741566832937,156.69990857,124.59,124.5,53.67845658]
[1741566833137,156.69990857,124.59,124.54,53.67845658]
[1741566833329,94.67491318,124.59,124.51,3.7693]
[1741566833529,94.67491318,124.59,124.48,264.04]
[1741566833735,53.67845658,124.57,124.45,3.7693]
[1741566833930,53.67845658,124.54,124.45,3.7693]
[1741566834137,0.05493456,124.55,124.45,3.7693]
[1741566834441,89.5428049,124.58,124.46,53.67845658]
[1741566834740,89.5428049,124.58,124.49,53.67845658]
[1741566835043,89.5428049,124.58,124.52,53.67845658]
[1741566835236,77.43967017,124.54,124.52,53.73431678]
[1741566835441,77.43967017,124.54,124.53,8.0308]
[1741566835442,9.51757017,124.54,124.53,8.0308]
[1741566835638,61.54,124.66,124.52,57.69845658]
[1741566835839,0.05921748,124.55,124.54,8.0301]
[1741566836035,31.2972,124.71,124.54,4.02]
[1741566836241,204.62126148,124.68,124.55,53.67845658]
[1741566836538,150.9428049,124.68,124.55,53.67845658]
[1741566837139,89.5428049,124.68,124.58,53.67845658]
[1741566837442,9.215e-05,124.6,124.59,333.4869]
[1741566837641,287.47634551,124.63,124.59,325.46]
[1741566837845,229.32104551,124.63,124.62,53.67845658]
[1741566838043,207.97084551,124.63,124.62,61.70345658]
[1741566838241,148.42954551,124.63,124.62,65.72345658]
[1741566838444,99.44234551,124.63,124.62,119.40191316]
[1741566838643,93.79354551,124.63,124.62,119.40191316]
[1741566838843,0.05683424,124.64,124.62,111.37691316]
[1741566839142,4.0973,124.78,124.62,135.23691316]
[1741566839345,12.17413424,124.78,124.67,53.67845658]
[1741566839542,4.0973,124.78,124.7,53.67845658]
[1741566839745,8.07683424,124.78,124.7,53.67845658]
[1741566839948,138.8218049,124.84,124.74,8.0167]
[1741566840148,3.834e-05,124.75,124.73,60.63067007]
[1741566840347,73.7910049,124.84,124.73,114.30912665]
[1741566840550,81.86783914,124.84,124.76,53.67845658]
[1741566840745,4.0973,124.89,124.73,60.58]
[1741566840746,4.0973,124.89,124.79,53.67845658]
[1741566840947,207.8703718,124.9,124.82,53.67845658]
[1741566841139,215.94720604,124.9,124.82,53.67845658]
[1741566841339,215.94720604,124.9,124.8,53.67845658]
[1741566841547,0.05476922,124.87,124.85,0.0510509]
[1741566841746,0.05476922,124.87,124.85,264.4910509]
[1741566842151,0.05476922,124.87,124.86,8.0096]
[1741566842352,6.922e-05,124.87,124.86,8.0096]
[1741566842552,6.922e-05,124.87,124.86,12.0096]
[1741566843049,4.1564,124.96,124.86,4.0]
[1741566843254,12.23323424,124.96,124.93,8.0049]
[1741566843454,8.07683424,124.96,124.93,264.44]
[1741566843655,60.12,125.01,124.97,8.0023]
[1741566843852,8.07683424,125.01,124.93,264.44]
[1741566844459,0.058224,124.98,124.96,0.05449185]
[1741566844856,0.058224,124.98,124.97,8.0025]
[1741566845458,8.13505824,124.98,124.96,0.05449185]
[1741566846551,53.73668058,124.98,124.93,256.41765761]
[1741566846853,0.058224,124.98,124.93,256.41765761]
[1741566847454,113.05845658,124.97,124.86,264.22]
[1741566847753,53.67845658,124.94,124.86,264.22]
[1741566847955,53.67845658,124.91,124.8,264.22]
[1741566848151,53.67845658,124.88,124.8,264.22]
[1741566848348,53.67845658,124.85,124.74,317.89845658]
[1741566848554,53.67845658,124.82,124.75,8.0166]
[1741566848749,53.67845658,124.82,124.74,264.22]
[1741566849157,53.67845658,124.82,124.75,8.0166]
[1741566849354,53.67845658,124.82,124.69,55.07324616]
[1741566849555,53.67845658,124.82,124.69,53.67845658]
[1741566849853,0.05768909,124.79,124.69,53.67845658]
[1741566850056,0.05768909,124.79,124.67,264.3]
[1741566850251,53.67845658,124.77,124.67,264.3]
[1741566850452,53.67845658,124.74,124.67,264.3]
[1741566850650,53.67845658,124.71,124.62,8.0244]
[1741566850852,53.67845658,124.68,124.6,264.3]
[1741566851261,53.67845658,124.68,124.63,0.05171645]
[1741566851562,0.05436367,124.65,124.63,0.05171645]
[1741566851957,58.9,124.7,124.63,0.05171645]
[1741566852358,0.05470005,124.65,124.54,265.81641266]
[1741566852559,112.21845658,124.65,124.54,265.81641266]
[1741566852757,53.67845658,124.62,124.54,264.42]
[1741566853160,53.67845658,124.62,124.48,58.6]
[1741566853161,53.67845658,124.59,124.48,58.6]
[1741566853757,0.05339975,124.55,124.52,0.05916822]
[1741566854754,3.9476,124.61,124.52,0.05916822]
[1741566854957,3.9476,124.61,124.5,112.01845658]
[1741566855359,3.9476,124.61,124.53,53.67845658]
[1741566855662,61.70295658,124.63,124.54,264.42]
[1741566855862,53.67845658,124.6,124.48,265.93733783]
[1741566856067,53.67845658,124.57,124.48,264.54]
[1741566856262,53.67845658,124.54,124.48,264.54]
[1741566856562,53.67845658,124.51,124.38,264.54]
[1741566856772,0.05259619,124.54,124.38,264.54]
[1741566856773,53.67845658,124.48,124.38,264.54]
[1741566857365,58.22,124.5,124.3,61.72345658]
[1741566857366,53.67845658,124.42,124.3,61.72345658]
[1741566857564,111.79845658,124.42,124.3,53.67845658]
[1741566857867,111.79845658,124.42,124.28,264.54]
[1741566857868,53.67845658,124.39,124.28,264.54]
[1741566859162,0.05367883,124.35,124.32,0.0534222]
[1741566859361,8.09617883,124.35,124.28,264.54]
[1741566859569,57.94,124.34,124.28,264.54]
[1741566859769,53.67845658,124.29,124.07,251.0]
[1741566859967,53.67845658,124.17,124.04,53.67845658]
[1741566860174,53.67845658,124.2,124.07,53.67845658]
[1741566860467,64.68,124.19,124.07,53.67845658]
[1741566860767,0.06113902,124.15,124.07,53.67845658]
[1741566861179,53.67845658,124.2,124.07,53.67845658]
[1741566861376,8.3431,124.23,124.1,53.67845658]
[1741566861575,8.3431,124.23,124.11,64.5]
[1741566861779,8.3431,124.23,124.01,265.1]
[1741566862078,53.67845658,124.18,124.01,265.1]
[1741566862279,118.27845658,124.18,124.04,53.67845658]
[1741566862474,118.27845658,124.18,124.07,53.67845658]
[1741566862475,64.6,124.18,124.07,53.67845658]
[1741566862779,0.06085128,124.12,124.1,0.06051382]
[1741566863177,53.67845658,124.18,124.07,118.15845658]
[1741566863373,0.05310208,124.12,124.1,0.05204391]
[1741566863573,8.3431,124.23,124.11,265.1]
[1741566863770,208.4091248,124.16,124.13,53.67845658]
[1741566863991,259.62736831,124.2,124.12,64.34]
[1741566864176,259.62736831,124.2,124.18,53.67845658]
[1741566864482,246.8529619,124.22,124.19,383.05845658]
[1741566864882,132.85535467,124.22,124.21,8.0515]
[1741566865086,12.82415467,124.22,124.21,253.72995658]
[1741566865276,53.67845658,124.41,124.21,196.02]
[1741566865481,8.05,124.32,124.26,53.67845658]
[1741566865685,8.05,124.32,124.27,64.2]
[1741566865686,8.05,124.31,124.27,64.2]
[1741566866181,0.05245232,124.3,124.29,53.67845658]
[1741566866484,31.6030831,124.4,124.29,299.35691316]
[1741566866683,31.6030831,124.4,124.37,53.67845658]
[1741566866877,39.6530831,124.4,124.38,64.06]
[1741566867078,31.6030831,124.4,124.38,117.73845658]
[1741566867279,31.6030831,124.4,124.38,171.41691316]
[1741566867476,8.0321,124.51,124.38,179.45731316]
[1741566867675,8.05,124.46,124.42,53.67845658]
[1741566867881,0.05366363,124.46,124.43,63.94]
[1741566868186,0.05366363,124.46,124.43,63.99470128]
[1741566868383,0.05366363,124.46,124.45,53.67845658]
[1741566868583,0.05366363,124.46,124.43,63.99470128]
[1741566869382,8.10366363,124.46,124.43,63.99470128]
[1741566869592,0.05366363,124.46,124.43,63.99470128]
[1741566869783,0.05366363,124.46,124.43,0.05470128]
[1741566869984,0.05366363,124.46,124.44,117.29845658]
[1741566870288,0.05366363,124.46,124.45,265.18]
[1741566871586,3.9075,124.53,124.45,265.18]
[1741566871785,40.26,124.51,124.47,53.67845658]
[1741566872087,57.57455658,124.6,124.47,53.67845658]
[1741566872287,8.05,124.53,124.47,53.67845658]
[1741566872488,8.05,124.51,124.48,63.58]
[1741566872689,8.10315855,124.51,124.49,0.05373359]
[1741566872891,0.05315855,124.51,124.49,0.05373359]
[1741566873281,57.57455658,124.6,124.49,0.05373359]
[1741566873482,73.69455658,124.6,124.5,53.67845658]
[1741566873689,8.05,124.56,124.5,53.67845658]
[1741566873984,8.05,124.58,124.53,53.67845658]
[1741566874182,12.3073,124.67,124.56,53.67845658]
[1741566874389,8.05,124.59,124.56,53.67845658]
[1741566874590,40.26,124.61,124.6,0.06049935]
[1741566874785,8.05,124.6,124.56,53.67845658]
[1741566874981,8.05,124.6,124.59,0.06129215]
[1741566875184,12.3073,124.67,124.59,53.73974873]
[1741566875380,0.05331191,124.61,124.59,116.61974873]
[1741566875584,0.05331191,124.61,124.59,62.88]
[1741566875793,12.3073,124.67,124.59,62.93539494]
[1741566875991,8.11141475,124.61,124.59,62.93539494]
[1741566876188,8.05,124.6,124.59,62.88]
[1741566876387,8.0225,124.66,124.59,62.93893135]
[1741566876584,0.05311765,124.61,124.59,116.61738793]
[1741566876791,8.05,124.64,124.59,116.55845658]
[1741566877083,48.31,124.6,124.59,0.0519772]
[1741566877288,48.31,124.6,124.5,53.67845658]
[1741566877490,8.05,124.58,124.53,53.67845658]
[1741566877684,16.12,124.6,124.5,53.67845658]
[1741566877884,8.05,124.57,124.51,62.44]
[1741566878085,53.67845658,124.8,124.54,53.67845658]
[1741566878283,8.05,124.6,124.57,53.67845658]
[1741566878488,8.05,124.6,124.59,0.06099142]
[1741566878787,16.12,124.6,124.59,9.142e-05]
[1741566879187,24.1463,124.6,124.59,9.142e-05]
[1741566879388,0.06154337,124.61,124.5,53.67845658]
[1741566879588,8.05,124.53,124.47,53.67845658]
[1741566879987,53.67845658,124.59,124.47,53.67845658]
[1741566880295,8.05,124.5,124.44,53.67845658]
[1741566880588,8.11042663,124.48,124.46,0.05876853]
[1741566880789,8.05,124.47,124.46,0.05876853]
[1741566880981,8.0889,124.55,124.43,264.92]
[1741566881187,0.05929968,124.48,124.47,53.67845658]
[1741566881382,0.05929968,124.48,124.44,53.67845658]
[1741566881588,53.67845658,124.59,124.44,53.67845658]
[1741566881784,0.06021578,124.47,124.46,0.05523693]
[1741566881983,69.79836516,124.59,124.44,53.67845658]
[1741566882182,0.05433011,124.48,124.45,0.06197807]
[1741566882383,0.05433011,124.48,124.44,53.67845658]
[1741566882581,3.9813,124.58,124.45,0.05533316]
[1741566882784,0.05558362,124.47,124.45,0.05533316]
[1741566882983,53.67845658,124.53,124.43,264.92]
[1741566882984,31.2972,124.52,124.43,264.92]
[1741566883190,0.05629952,124.47,124.43,264.92]
[1741566883385,53.7347561,124.47,124.36,264.94]
[1741566883595,69.85466468,124.47,124.36,264.94]
[1741566883792,16.11990858,124.47,124.38,53.67845658]
[1741566884196,16.11990858,124.47,124.38,115.31845658]